fUSD/lending_fUSD_20250507
["ID","MTS","AMOUNT","RATE_DAILY","PERIOD"]
[360150921,1746576653966,-1291.54,0.00019685,2]
[360150922,1746576653976,-470.88,0.00019685,2]
[360150923,1746576653985,-470.88,0.00019685,2]
[360150924,1746576653995,-450.0,0.00019685,2]
[360150925,1746576654004,-450.0,0.00019685,2]
[360150926,1746576654013,-450.0,0.00019685,2]
[360150927,1746576654030,-450.0,0.00019685,2]
[360150928,1746576654046,-450.0,0.00019685,2]
[360150929,1746576654064,-450.0,0.00019685,2]
[360150930,1746576654083,-511.3,0.00019685,2]
[360150931,1746576654098,-151.0,0.00019685,2]
[360150932,1746576654115,-151.0,0.00019685,2]
[360150933,1746576654132,-552.32,0.00019685,2]
[360150934,1746576654150,-450.0,0.00019685,2]
[360150935,1746576654169,-443.11,0.00019685,2]
[360150936,1746576654185,-1419.98,0.00019685,2]
[360150937,1746576654204,-450.0,0.00019685,2]
[360150938,1746576654220,-450.0,0.00019685,2]
[360150939,1746576654233,-821.44,0.00019685,2]
[360150940,1746576654251,-821.44,0.00019685,2]
[360150941,1746576654263,-793.66,0.00019685,2]
[360150942,1746576654281,-450.0,0.00019685,2]
[360150943,1746576654293,-151.0,0.00019685,2]
[360150944,1746576654308,-4124.07,0.00019685,2]
[360150945,1746576654322,-1194.39,0.00019685,2]
[360150946,1746576654337,-450.0,0.00019685,2]
[360150947,1746576654352,-753.15,0.00019685,2]
[360150948,1746576654369,-753.15,0.00019685,2]
[360150949,1746576654383,-2084.06,0.00019685,2]
[360150950,1746576654398,-450.0,0.00019685,2]
[360150951,1746576654412,-1771.37,0.00019685,2]
[360150952,1746576654428,-974.88,0.00019685,2]
[360150953,1746576654443,-450.0,0.00019685,2]
[360150954,1746576654458,-263.293334,0.00019685,2]
[360150955,1746576654473,-263.293334,0.00019685,2]
[360150956,1746576654490,-623.13,0.00019685,2]
[360150957,1746576654505,-623.13,0.00019685,2]
[360150958,1746576654520,-497.13,0.00019685,2]
[360150959,1746576654535,-450.0,0.00019685,2]
[360150960,1746576654549,-151.0,0.00019685,2]
[360150961,1746576654564,-864.45,0.00019685,2]
[360150962,1746576654579,-1234.89,0.00019685,2]
[360150963,1746576654593,-652.02,0.00019685,2]
[360150964,1746576654608,-652.02,0.00019685,2]
[360150965,1746576654622,-732.65,0.00019685,2]
[360150966,1746576654637,-450.0,0.00019685,2]
[360150967,1746576654652,-2392.18,0.00019685,2]
[360150968,1746576654666,-450.0,0.00019685,2]
[360150969,1746576654681,-450.0,0.00019685,2]
[360150970,1746576654697,-151.0,0.00019685,2]
[360150971,1746576654712,-151.0,0.00019685,2]
[360150972,1746576654726,-2549.19,0.00019685,2]
[360150973,1746576654741,-1807.95,0.00019685,2]
[360150974,1746576654755,-581.11,0.00019685,2]
[360150975,1746576654770,-607.73,0.00019685,2]
[360150976,1746576654784,-607.73,0.00019685,2]
[360150977,1746576654800,-811.18,0.00019685,2]
[360150978,1746576654815,-1384.57,0.00019685,2]
[360150979,1746576654831,-460.01,0.00019685,2]
[360150980,1746576654846,-1368.4,0.00019685,2]
[360150981,1746576654861,-1401.46,0.00019685,2]
[360150982,1746576654875,-151.0,0.00019685,2]
[360150983,1746576654890,-151.0,0.00019685,2]
[360150984,1746576654906,-923.74,0.00019685,2]
[360150985,1746576654921,-450.0,0.00019685,2]
[360150986,1746576654935,-151.0,0.00019685,2]
[360150987,1746576654951,-151.0,0.00019685,2]
[360150988,1746576654967,-151.0,0.00019685,2]
[360150989,1746576654982,-2174.76,0.00019685,2]
[360150990,1746576654997,-151.0,0.00019685,2]
[360150991,1746576655012,-2357.35,0.00019685,2]
[360150992,1746576655027,-2664.99,0.00019685,2]
[360150993,1746576655042,-450.0,0.00019685,2]
[360150994,1746576655056,-450.0,0.00019685,2]
[360150995,1746576655192,-450.0,0.00019685,2]
[360150996,1746576655207,-153.92,0.00019685,2]
[360150997,1746576655217,-151.0,0.00019685,2]
[360150998,1746576655227,-151.0,0.00019685,2]
[360150999,1746576655236,-450.0,0.00019685,2]
[360151000,1746576655245,-522.16891712,0.00019685,2]
[360151001,1746576655256,-151.0,0.00019685,2]
[360151002,1746576655266,-151.0,0.00019685,2]
[360151003,1746576655275,-504.93,0.00019685,2]
[360151004,1746576655284,-450.0,0.00019685,2]
[360151005,1746576655293,-450.0,0.00019685,2]
[360151006,1746576655303,-4821.41,0.00019685,2]
[360151007,1746576655312,-1407.09,0.00019685,2]
[360151008,1746576655322,-29449.42,0.00019685,2]
[360151009,1746576655331,-1032.09,0.00019685,2]
[360151010,1746576655341,-657.64,0.00019685,2]
[360151011,1746576655350,-809.2,0.00019685,2]
[360151012,1746576655365,-809.2,0.00019685,2]
[360151013,1746576655377,-450.0,0.00019685,2]
[360151014,1746576655385,-450.0,0.00019685,2]
[360151015,1746576655394,-2615.18,0.00019685,2]
[360151016,1746576655404,-2615.18,0.00019685,2]
[360151017,1746576655414,-169.96378,0.00019685,2]
[360151018,1746576655424,-169.96378,0.00019685,2]
[360151019,1746576655434,-450.0,0.00019685,2]
[360151020,1746576655444,-169.96378,0.00019685,2]
[360151021,1746576655455,-169.96378,0.00019685,2]
[360151022,1746576655465,-450.0,0.00019685,2]
[360151023,1746576655474,-470.78,0.00019685,2]
[360151024,1746576655484,-470.78,0.00019685,2]
[360151025,1746576655493,-2616.93,0.00019685,2]
[360151026,1746576655503,-450.0,0.00019685,2]
[360151027,1746576655513,-192.894871,0.00019685,2]
[360151028,1746576655522,-1393.32,0.00019685,2]
[360151029,1746576655531,-1393.32,0.00019685,2]
[360151030,1746576655540,-284.47344,0.00019685,2]
[360151031,1746576655550,-284.47344,0.00019685,2]
[360151032,1746576655559,-10109.91,0.00019685,2]
[360151033,1746576655568,-473.61,0.00019685,2]
[360151034,1746576655578,-284.47344,0.00019685,2]
[360151035,1746576655587,-284.47344,0.00019685,2]
[360151036,1746576655597,-1474.54,0.00019685,2]
[360151037,1746576655606,-1474.54,0.00019685,2]
[360151038,1746576655616,-450.0,0.00019685,2]
[360151039,1746576655626,-870.46,0.00019685,2]
[360151040,1746576655635,-450.0,0.00019685,2]
[360151041,1746576655644,-450.0,0.00019685,2]
[360151042,1746576655654,-450.0,0.00019685,2]
[360151043,1746576655663,-450.0,0.00019685,2]
[360151044,1746576655673,-7334.47,0.00019685,2]
[360151045,1746576655682,-2212.76,0.00019685,2]
[360151046,1746576655692,-1696.35,0.00019685,2]
[360151047,1746576655701,-1696.35,0.00019685,2]
[360151048,1746576655711,-507.0,0.00019686,2]
[360151049,1746576655720,-450.0,0.00019686,2]
[360151050,1746576655730,-450.0,0.00019686,2]
[360151051,1746576655739,-470.0,0.00019686,2]
[360151052,1746576655749,-450.0,0.00019686,2]
[360151053,1746576655759,-470.0,0.00019686,2]
[360151054,1746576655768,-175.52753006,0.00019686,2]
[360151055,1746576655778,-683.3,0.00019686,2]
[360151056,1746576655787,-450.0,0.00019686,2]
[360151057,1746576655796,-542.47253425,0.00019686,2]
[360151058,1746576655806,-450.0,0.00019686,2]
[360151059,1746576655816,-450.0,0.00019686,2]
[360151060,1746576655825,-450.0,0.00019686,2]
[360151061,1746576655835,-500.0,0.00019686,2]
[360151062,1746576655844,-450.0,0.00019686,2]
[360151063,1746576655853,-450.0,0.00019686,2]
[360151064,1746576655863,-450.0,0.00019686,2]
[360151065,1746576655872,-541.26149482,0.00019686,2]
[360151066,1746576655881,-457.59240809,0.00019686,2]
[360151067,1746576655891,-450.0,0.00019686,2]
[360151068,1746576655900,-450.0,0.00019686,2]
[360151069,1746576655909,-450.0,0.00019686,2]
[360151070,1746576655919,-450.0,0.00019686,2]
[360151071,1746576655928,-450.0,0.00019686,2]
[360151072,1746576655938,-450.0,0.00019686,2]
[360151073,1746576655947,-450.0,0.00019686,2]
[360151074,1746576655957,-450.0,0.00019686,2]
[360151075,1746576655966,-450.0,0.00019686,2]
[360151076,1746576655976,-450.0,0.00019686,2]
[360151077,1746576655986,-470.0,0.00019686,2]
[360151078,1746576655995,-564.1899375,0.00019686,2]
[360151079,1746576656004,-500.0,0.00019686,2]
[360151080,1746576656013,-450.0,0.00019686,2]
[360151081,1746576656023,-450.0,0.00019686,2]
[360151082,1746576656032,-450.0,0.00019686,2]
[360151083,1746576656042,-500.0,0.00019686,2]
[360151084,1746576656051,-450.0,0.00019686,2]
[360151085,1746576656061,-450.0,0.00019686,2]
[360151086,1746576656070,-450.0,0.00019686,2]
[360151087,1746576656079,-466.51,0.00019686,2]
[360151088,1746576656089,-450.0,0.00019686,2]
[360151089,1746576656098,-450.0,0.00019686,2]
[360151090,1746576656107,-248.85891665,0.00019686,2]
[360151091,1746576656116,-450.0,0.00019686,2]
[360151092,1746576656126,-450.0,0.00019686,2]
[360151093,1746576656135,-450.0,0.00019686,2]
[360151094,1746576656145,-450.0,0.00019686,2]
[360151095,1746576656154,-450.0,0.00019686,2]
[360151096,1746576656163,-1953.99,0.00019686,2]
[360151097,1746576656173,-450.0,0.00019686,2]
[360151098,1746576656182,-547.92,0.00019686,2]
[360151099,1746576656191,-450.0,0.00019686,2]
[360151100,1746576656202,-492.76845104,0.00019686,2]
[360151101,1746576656212,-450.0,0.00019686,2]
[360151102,1746576656222,-300.0,0.00019686,2]
[360151103,1746576656232,-450.0,0.00019686,2]
[360151104,1746576656241,-450.0,0.00019686,2]
[360151105,1746576656251,-450.0,0.00019686,2]
[360151106,1746576656260,-450.0,0.00019686,2]
[360151107,1746576656270,-450.0,0.00019686,2]
[360151108,1746576656279,-151.0,0.00019686,2]
[360151109,1746576656289,-450.0,0.00019686,2]
[360151110,1746576656298,-450.0,0.00019686,2]
[360151111,1746576656307,-461.22,0.00019686,2]
[360151112,1746576656317,-450.0,0.00019686,2]
[360151113,1746576656326,-498.01338151,0.00019686,2]
[360151114,1746576656335,-450.0,0.00019686,2]
[360151115,1746576656344,-450.0,0.00019686,2]
[360151116,1746576656359,-486.75,0.00019686,2]
[360151117,1746576656368,-450.0,0.00019686,2]
[360151118,1746576656378,-151.0,0.00019686,2]
[360151119,1746576656387,-480.63898003,0.00019686,2]
[360151120,1746576656397,-1212.95,0.00019686,2]
[360151121,1746576656407,-450.0,0.00019686,2]
[360151122,1746576656416,-151.0,0.00019686,2]
[360151123,1746576656427,-450.0,0.00019686,2]
[360151124,1746576656437,-468.42063572,0.00019686,2]
[360151125,1746576656446,-450.0,0.00019686,2]
[360151126,1746576656455,-450.0,0.00019686,2]
[360151127,1746576656464,-832.05,0.00019686,2]
[360151128,1746576656473,-450.0,0.00019686,2]
[360151129,1746576656482,-450.0,0.00019686,2]
[360151130,1746576656492,-450.0,0.00019686,2]
[360151131,1746576656502,-488.15,0.00019686,2]
[360151132,1746576656511,-450.0,0.00019686,2]
[360151133,1746576656521,-450.0,0.00019686,2]
[360151134,1746576656530,-450.0,0.00019686,2]
[360151135,1746576656540,-450.0,0.00019686,2]
[360151136,1746576656549,-484.32,0.00019686,2]
[360151137,1746576656558,-450.0,0.00019686,2]
[360151138,1746576656568,-312.68154554,0.00019686,2]
[360151139,1746576656577,-450.0,0.00019686,2]
[360151140,1746576656586,-450.0,0.00019686,2]
[360151141,1746576656595,-450.0,0.00019686,2]
[360151142,1746576656605,-450.0,0.00019686,2]
[360151143,1746576656614,-450.0,0.00019686,2]
[360151144,1746576656624,-374.11058647,0.00019686,2]
[360151145,1746576656633,-151.0,0.00019686,2]
[360151146,1746576656643,-450.0,0.00019686,2]
[360151147,1746576656652,-151.0,0.00019686,2]
[360151148,1746576656662,-151.0,0.00019686,2]
[360151149,1746576656673,-446.053669,0.00019686,2]
[360151150,1746576656682,-446.053669,0.00019686,2]
[360151151,1746576656693,-151.0,0.00019686,2]
[360151152,1746576656702,-151.0,0.00019686,2]
[360151153,1746576656711,-151.0,0.00019686,2]
[360151154,1746576656721,-151.0,0.00019686,2]
[360151155,1746576656730,-263.293334,0.00019686,2]
[360151156,1746576656739,-263.293334,0.00019686,2]
[360151157,1746576656749,-151.0,0.00019686,2]
[360151158,1746576656758,-151.0,0.00019686,2]
[360151159,1746576656767,-683.04,0.00019686,2]
[360151160,1746576656776,-450.0,0.00019686,2]
[360151161,1746576656873,-151.0,0.00019686,2]
[360151162,1746576656891,-450.0,0.00019686,2]
[360151163,1746576656900,-819.33,0.00019686,2]
[360151164,1746576656910,-965.64,0.00019686,2]
[360151165,1746576656919,-1805.97,0.00019686,2]
[360151166,1746576656928,-511.72,0.00019686,2]
[360151167,1746576656937,-2407.37,0.00019686,2]
[360151168,1746576656947,-880.23,0.00019686,2]
[360151169,1746576656957,-450.0,0.00019686,2]
[360151170,1746576656966,-2580.83,0.00019686,2]
[360151171,1746576656975,-450.0,0.00019686,2]
[360151172,1746576656984,-623.27,0.00019686,2]
[360151173,1746576656994,-450.0,0.00019686,2]
[360151174,1746576657003,-450.0,0.00019686,2]
[360151175,1746576657012,-300.0,0.00019687,2]
[360151176,1746576657022,-450.0,0.00019687,2]
[360151177,1746576657031,-589.22836499,0.00019687,2]
[360151178,1746576657040,-450.0,0.00019687,2]
[360151179,1746576657049,-450.0,0.00019687,2]
[360151180,1746576657059,-450.0,0.00019687,2]
[360151181,1746576657068,-450.0,0.00019687,2]
[360151182,1746576657078,-450.0,0.00019687,2]
[360151183,1746576657087,-450.0,0.00019687,2]
[360151184,1746576657097,-450.0,0.00019687,2]
[360151185,1746576657106,-450.0,0.00019687,2]
[360151186,1746576657116,-450.0,0.00019687,2]
[360151187,1746576657125,-235.25419526,0.00019687,2]
[360151188,1746576657135,-450.0,0.00019687,2]
[360151189,1746576657144,-451.87,0.00019687,2]
[360151190,1746576657154,-450.0,0.00019687,2]
[360151191,1746576657163,-450.0,0.00019687,2]
[360151192,1746576657172,-510.0,0.00019687,2]
[360151193,1746576657182,-250.0,0.00019687,2]
[360151194,1746576657191,-450.0,0.00019687,2]
[360151195,1746576657201,-450.0,0.00019687,2]
[360151196,1746576657211,-450.0,0.00019687,2]
[360151197,1746576657221,-450.0,0.00019687,2]
[360151198,1746576657231,-221.38,0.00019687,2]
[360151199,1746576657240,-570.0,0.00019687,2]
[360151200,1746576657250,-450.0,0.00019687,2]
[360151201,1746576657260,-417.01,0.00019687,2]
[360151202,1746576657270,-450.0,0.00019687,2]
[360151203,1746576657279,-450.0,0.00019687,2]
[360151204,1746576657289,-450.0,0.00019687,2]
[360151205,1746576657299,-708.68,0.00019687,2]
[360151206,1746576657308,-517.66126788,0.00019687,2]
[360151207,1746576657318,-647.68,0.00019687,2]
[360151208,1746576657328,-450.0,0.00019687,2]
[360151209,1746576657338,-450.0,0.00019687,2]
[360151210,1746576657347,-658.89,0.00019687,2]
[360151211,1746576657360,-450.0,0.00019687,2]
[360151212,1746576657369,-450.0,0.00019687,2]
[360151213,1746576657378,-783.5,0.00019687,2]
[360151214,1746576657387,-450.0,0.00019687,2]
[360151215,1746576657398,-450.0,0.00019687,2]
[360151216,1746576657408,-450.0,0.00019687,2]
[360151217,1746576657417,-450.0,0.00019687,2]
[360151218,1746576657428,-450.0,0.00019687,2]
[360151219,1746576657438,-450.0,0.00019687,2]
[360151220,1746576657449,-1363.24,0.00019687,2]
[360151221,1746576657458,-1332.95,0.00019687,2]
[360151222,1746576657468,-450.0,0.00019687,2]
[360151223,1746576657477,-465.23,0.00019687,2]
[360151224,1746576657487,-475.17163322,0.00019687,2]
[360151225,1746576657496,-500.0,0.00019687,2]
[360151226,1746576657505,-545.73,0.00019687,2]
[360151227,1746576657515,-1043.93,0.00019687,2]
[360151228,1746576657525,-983.61,0.00019687,2]
[360151229,1746576657534,-1756.06,0.00019687,2]
[360151230,1746576657545,-1756.06,0.00019687,2]
[360151231,1746576657554,-1756.06,0.00019687,2]
[360151232,1746576657564,-1498.54,0.00019687,2]
[360151233,1746576657573,-320.05712154,0.00019687,2]
[360151234,1746576657583,-450.0,0.00019687,2]
[360151235,1746576657593,-464.03,0.00019687,2]
[360151236,1746576657603,-2279.53,0.00019687,2]
[360151237,1746576657613,-2279.53,0.00019687,2]
[360151238,1746576657623,-2279.53,0.00019687,2]
[360151239,1746576657632,-698.56,0.00019687,2]
[360151240,1746576657642,-536.37,0.00019687,2]
[360151241,1746576657651,-2286.55,0.00019687,2]
[360151242,1746576657660,-450.0,0.00019687,2]
[360151243,1746576657670,-547.39,0.00019687,2]
[360151244,1746576657679,-450.0,0.00019687,2]
[360151245,1746576657688,-450.0,0.00019687,2]
[360151246,1746576657698,-550.59986954,0.00019687,2]
[360151247,1746576658195,-509.92013046,0.00019687,2]
[360151248,1746576658205,-166.26101674,0.00019687,2]
[360151249,1746576658217,-894.25898326,0.00019687,2]
[360151250,1746576658226,-1060.52,0.00019687,2]
[360151251,1746576658236,-1629.87,0.00019687,2]
[360151252,1746576658245,-450.0,0.00019687,2]
[360151253,1746576658255,-1336.46,0.00019687,2]
[360151254,1746576658264,-467.37,0.00019687,2]
[360151255,1746576658274,-2998.45,0.00019687,2]
[360151256,1746576658284,-2998.45,0.00019687,2]
[360151257,1746576658295,-2998.45,0.00019687,2]
[360151258,1746576658306,-3717.28,0.00019687,2]
[360151259,1746576658315,-3117.89101674,0.00019687,2]
[360151260,1746576658327,-599.38898326,0.00019687,2]
[360151261,1746576658336,-1339.77237726,0.00019687,2]
[360151262,1746576658348,-755.19678338,0.00019687,2]
[360151263,1746576658363,-1622.31083936,0.00019687,2]
[360151264,1746576658373,-450.0,0.00019687,2]
[360151265,1746576658382,-450.0,0.00019687,2]
[360151266,1746576658391,-450.0,0.00019687,2]
[360151267,1746576658401,-450.0,0.00019687,2]
[360151268,1746576658410,-2736.58,0.00019687,2]
[360151269,1746576658420,-450.0,0.00019687,2]
[360151270,1746576658429,-2035.16,0.00019687,2]
[360151271,1746576658438,-151.0,0.00019687,2]
[360151272,1746576658448,-450.0,0.00019687,2]
[360151273,1746576658458,-450.0,0.00019687,2]
[360151274,1746576658467,-450.0,0.00019687,2]
[360151275,1746576658477,-2788.28,0.00019687,2]
[360151276,1746576658487,-450.0,0.00019687,2]
[360151277,1746576658496,-450.0,0.00019687,2]
[360151278,1746576658506,-1955.13,0.00019687,2]
[360151279,1746576658516,-450.0,0.00019687,2]
[360151280,1746576658526,-1955.13,0.00019687,2]
[360151281,1746576658535,-1955.13,0.00019687,2]
[360151282,1746576658544,-450.0,0.00019687,2]
[360151283,1746576658554,-450.0,0.00019687,2]
[360151284,1746576658563,-1070.79,0.00019687,2]
[360151285,1746576658574,-1070.79,0.00019687,2]
[360151286,1746576658583,-1070.79,0.00019687,2]
[360151287,1746576658592,-450.0,0.00019687,2]
[360151288,1746576658602,-861.33,0.00019687,2]
[360151289,1746576658611,-861.33,0.00019687,2]
[360151290,1746576658620,-861.33,0.00019687,2]
[360151291,1746576658630,-952.38,0.00019687,2]
[360151292,1746576658639,-683.04,0.00019687,2]
[360151293,1746576658650,-683.04,0.00019687,2]
[360151294,1746576658659,-450.0,0.00019687,2]
[360151295,1746576658669,-1232.67,0.00019687,2]
[360151296,1746576658679,-450.0,0.00019687,2]
[360151297,1746576658688,-450.0,0.00019687,2]
[360151298,1746576658698,-450.0,0.00019687,2]
[360151299,1746576658708,-135.53771988,0.00019687,2]
[360151300,1746576658721,-314.46228012,0.00019687,2]
[360151301,1746576658731,-445.8913532,0.00019687,2]
[360151302,1746576658870,-500.0,0.00019625,2]
[360151303,1746576658879,-500.0,0.00019625,2]
[360151304,1746576658889,-355.5686468,0.00019687,2]
[360151305,1746576658899,-151.0,0.00019687,2]
[360151306,1746576658908,-490.0,0.00019687,2]
[360151307,1746576658918,-1378.56,0.00019687,2]
[360151308,1746576658928,-1929.54202012,0.00019687,2]
[360151309,1746576658939,-503.38797988,0.00019687,2]
[360151310,1746576658949,-450.0,0.00019687,2]
[360151311,1746576658958,-819.33,0.00019687,2]
[360151312,1746576658969,-819.33,0.00019687,2]
[360151313,1746576658978,-450.0,0.00019687,2]
[360151314,1746576658988,-603.98,0.00019687,2]
[360151315,1746576658997,-450.0,0.00019687,2]
[360151316,1746576659007,-450.0,0.00019687,2]
[360151317,1746576659016,-450.0,0.00019687,2]
[360151318,1746576659026,-450.0,0.00019687,2]
[360151319,1746576659035,-1805.97,0.00019687,2]
[360151320,1746576659044,-1805.97,0.00019687,2]
[360151321,1746576659053,-450.0,0.00019687,2]
[360151322,1746576659063,-450.0,0.00019687,2]
[360151323,1746576659072,-897.99,0.00019687,2]
[360151324,1746576659081,-489.76,0.00019687,2]
[360151325,1746576659091,-754.08,0.00019687,2]
[360151326,1746576659100,-754.08,0.00019687,2]
[360151327,1746576659110,-754.08,0.00019687,2]
[360151328,1746576659119,-450.0,0.00019687,2]
[360151329,1746576659128,-774.58213313,0.00019687,2]
[360151330,1746576659139,-7637.487055,0.00019687,2]
[360151331,1746576660226,-475.77116686,0.00019625,2]
[360151332,1746576660264,-24.22883314,0.00019625,2]
[360151333,1746576660280,-664.44323892,0.00019625,2]
[360151334,1746576660298,-174.64648247,0.00019625,2]
[360151335,1746576660359,-150.4218833,0.00019625,2]
[360151336,1746576660374,-500.0,0.00019625,2]
[360151337,1746576660389,-500.0,0.00019625,2]
[360151338,1746576660405,-500.0,0.00019625,2]
[360151339,1746576660421,-664.44323892,0.00019625,2]
[360151340,1746576660437,-664.44323892,0.00019625,2]
[360151341,1746576660452,-664.44323892,0.00019625,2]
[360151342,1746576660466,-664.44323892,0.00019625,2]
[360151343,1746576660481,-664.44323892,0.00019625,2]
[360151344,1746576660496,-664.44323892,0.00019625,2]
[360151345,1746576660511,-664.44323892,0.00019625,2]
[360151346,1746576660525,-664.44323892,0.00019625,2]
[360151347,1746576660540,-664.44323892,0.00019625,2]
[360151348,1746576660555,-664.44323892,0.00019625,2]
[360151349,1746576660569,-664.44323892,0.00019625,2]
[360151350,1746576660583,-664.44323892,0.00019625,2]
[360151351,1746576660598,-664.44323892,0.00019625,2]
[360151352,1746576660612,-664.44323892,0.00019625,2]
[360151353,1746576660626,-664.44323892,0.00019625,2]
[360151354,1746576660641,-664.44323892,0.00019625,2]
[360151355,1746576660656,-664.44323892,0.00019625,2]
[360151356,1746576660670,-450.0,0.00019683,2]
[360151357,1746576660686,-450.0,0.00019683,2]
[360151358,1746576660701,-450.0,0.00019683,2]
[360151359,1746576660716,-450.0,0.00019684,2]
[360151360,1746576660730,-8809.80988684,0.00019687,2]
[360151361,1746576661578,-664.44323892,0.00019625,2]
[360151362,1746576661588,-664.44323892,0.00019625,2]
[360151363,1746576661601,-664.44323892,0.00019625,2]
[360151364,1746576661612,-664.44323892,0.00019625,2]
[360151365,1746576661621,-664.44323892,0.00019625,2]
[360151366,1746576661630,-664.44323892,0.00019625,2]
[360151367,1746576661640,-664.44323892,0.00019625,2]
[360151368,1746576661649,-664.44323892,0.00019625,2]
[360151369,1746576661659,-664.44323892,0.00019625,2]
[360151370,1746576661668,-664.44323892,0.00019625,2]
[360151371,1746576661678,-664.44323892,0.00019625,2]
[360151372,1746576661687,-664.44323892,0.00019625,2]
[360151373,1746576661696,-664.44323892,0.00019625,2]
[360151374,1746576661705,-664.44323892,0.00019625,2]
[360151375,1746576661714,-664.44323892,0.00019625,2]
[360151376,1746576661723,-664.44323892,0.00019625,2]
[360151377,1746576661732,-664.44323892,0.00019625,2]
[360151378,1746576661742,-664.44323892,0.00019625,2]
[360151379,1746576661752,-664.44323892,0.00019625,2]
[360151380,1746576661761,-664.44323892,0.00019625,2]
[360151381,1746576661770,-664.44323892,0.00019625,2]
[360151382,1746576661779,-664.44323892,0.00019625,2]
[360151383,1746576661789,-664.44323892,0.00019625,2]
[360151384,1746576661798,-664.44323892,0.00019625,2]
[360151385,1746576661807,-664.44323892,0.00019625,2]
[360151386,1746576661818,-664.44323892,0.00019625,2]
[360151387,1746576661827,-491.81,0.00019684,2]
[360151388,1746576661838,-151.0,0.00019684,2]
[360151389,1746576661847,-491.81,0.00019685,2]
[360151390,1746576661856,-151.0,0.00019685,2]
[360151391,1746576661866,-28432.58092503,0.00019687,2]
[360151392,1746576661876,-591.95,0.00019687,2]
[360151393,1746576661885,-454.58,0.00019687,2]
[360151394,1746576661895,-450.0,0.00019687,2]
[360151395,1746576661904,-661.02,0.00019687,2]
[360151396,1746576661914,-2651.84,0.00019687,2]
[360151397,1746576661923,-2651.84,0.00019687,2]
[360151398,1746576661932,-450.0,0.00019687,2]
[360151399,1746576661941,-2651.84,0.00019687,2]
[360151400,1746576661951,-450.0,0.00019687,2]
[360151401,1746576661961,-444.17923048,0.00019687,2]
[360151402,1746576661974,-5.82076952,0.00019687,2]
[360151403,1746576661983,-331.91769707,0.00019687,2]
[360151404,1746576661993,-2407.37,0.00019687,2]
[360151405,1746576662002,-2407.37,0.00019687,2]
[360151406,1746576662011,-450.0,0.00019687,2]
[360151407,1746576662020,-632.52,0.00019687,2]
[360151408,1746576662029,-450.0,0.00019687,2]
[360151409,1746576662039,-228.0845549,0.00019687,2]
[360151410,1746576662051,-1712.948397,0.00019687,2]
[360151411,1746576662080,-151.0,0.00019685,2]
[360151412,1746576662089,-302.9270481,0.00019687,2]
[360151413,1746576662098,-1755.10614052,0.00019687,2]
[360151414,1746576662110,-488.85385948,0.00019687,2]
[360151415,1746576662119,-1201.27114052,0.00019687,2]
[360151416,1746576662131,-1042.68885948,0.00019687,2]
[360151417,1746576662140,-866.26,0.00019687,2]
[360151418,1746576662150,-605.15,0.00019687,2]
[360151419,1746576662160,-169.96378,0.00019687,2]
[360151420,1746576662169,-137.93736052,0.00019687,2]